bitfinex/quotes_ETHUSD_20240925
["timestamp","ask_amount","ask_price","bid_price","bid_amount"]
[1727274530938,0.03421709,2629.1,2629.0,7.74935137]
[1727274531301,1.19705213,2629.3,2629.0,7.74935137]
[1727274531502,1.19705213,2629.2,2629.0,6.62572943]
[1727274531739,1.19705213,2629.2,2629.1,3.80358]
[1727274531740,0.03413785,2629.2,2629.1,3.80358]
[1727274532202,0.03413785,2629.2,2629.0,6.62571943]
[1727274532203,1.58151488,2629.4,2629.2,3.80341]
[1727274532406,0.03413677,2629.2,2629.1,3.80355]
[1727274532611,1.19724029,2629.2,2629.1,3.80355]
[1727274532811,1.23137706,2629.2,2629.1,3.80355]
[1727274533538,1.23137706,2629.2,2628.8,0.8067]
[1727274533708,1.19724029,2629.1,2628.8,8.41457]
[1727274533914,0.03414724,2629.0,2628.9,3.8038]
[1727274534442,0.03414724,2629.0,2628.8,7.43263943]
[1727274534443,0.03414724,2629.0,2628.8,7.43262943]
[1727274534960,1.19724029,2629.1,2628.9,3.80387]
[1727274535325,1.19724029,2629.1,2628.8,7.43270943]
[1727274535530,1.19724029,2629.1,2628.8,11.23659943]
[1727274536459,1.19724029,2629.1,2628.6,3.80416]
[1727274536460,1.19724029,2629.0,2628.6,3.80416]
[1727274536618,1.19724029,2628.9,2628.6,3.80416]
[1727274536822,0.03403612,2629.0,2628.7,3.80409]
[1727274537155,1.19724029,2629.1,2628.7,3.80409]
[1727274537318,1.19724029,2629.0,2628.8,3.80396]
[1727274537657,0.03403242,2628.9,2628.7,3.80414]
[1727274538414,0.03403242,2628.9,2628.7,7.60817]
[1727274538657,0.03403242,2628.9,2628.8,7.66903737]
[1727274538828,0.03403242,2628.9,2628.8,8.46373737]
[1727274539021,1.19724029,2629.2,2629.1,3.80358]
[1727274539550,1.58151488,2629.2,2629.1,3.80358]
[1727274539767,1.58151488,2629.2,2629.1,3.60358]
[1727274540052,1.93927614,2629.2,2628.8,3.80392]
[1727274540359,1.27366745,2629.0,2628.3,4.6468809]
[1727274540660,5.00158745,2628.8,2628.3,4.6468509]
[1727274540952,5.00158745,2628.8,2628.3,0.0326909]
[1727274540953,5.03572608,2628.7,2628.3,0.0326909]
[1727274541159,5.00194745,2628.6,2628.3,0.0326909]
[1727274541351,1.19756745,2628.6,2628.3,0.0326909]
[1727274541515,1.23151238,2628.6,2628.3,0.0326909]
[1727274541919,1.23151238,2628.6,2628.3,3.8373109]
[1727274542125,1.23151238,2628.6,2628.4,3.80456]
[1727274542362,0.03394493,2628.6,2628.5,3.80445]
[1727274542865,1.19756745,2628.8,2628.6,3.80425]
[1727274543575,1.19756745,2628.8,2628.5,3.80445]
[1727274543871,0.03376752,2628.7,2628.5,3.80445]
[1727274544024,0.03376752,2628.7,2628.6,3.8043]
[1727274544232,3.88029,2628.7,2628.3,0.0326909]
[1727274544470,1.97332885,2628.7,2628.3,0.0326909]
[1727274544677,1.19756745,2628.5,2628.3,0.0326909]
[1727274544967,5.41962355,2628.4,2628.3,0.0326909]
[1727274545167,5.43360769,2628.4,2628.3,0.0326909]
[1727274545366,5.83307307,2628.4,2628.3,0.0326909]
[1727274545573,10.69998441,2628.4,2628.3,0.0326909]
[1727274545734,7.87797498,2628.4,2628.3,0.0326909]
[1727274546567,7.84445631,2628.4,2628.3,0.0326909]
[1727274547330,9.83657674,2628.4,2628.3,0.0326909]
[1727274547670,12.65849074,2628.4,2628.3,0.0326909]
[1727274547866,13.61042302,2628.4,2628.3,0.0326909]
[1727274548033,11.61346166,2628.4,2628.3,0.0326909]
[1727274548524,14.00235682,2628.4,2628.3,0.0326909]
[1727274548730,11.21646574,2628.4,2628.3,0.0326909]
[1727274549667,13.6053609,2628.4,2628.3,0.0326909]
[1727274549979,11.61338326,2628.4,2628.3,0.0326909]
[1727274550339,14.00115031,2628.4,2628.3,0.0326909]
[1727274551231,13.60095473,2628.4,2628.3,0.0326909]
[1727274551430,13.20403721,2628.4,2628.3,0.0326909]
[1727274551646,13.60109909,2628.4,2628.3,0.0326909]
[1727274551855,13.6011402,2628.4,2628.3,0.0326909]
[1727274552041,11.61360859,2628.4,2628.3,0.0326909]
[1727274552425,10.77821445,2628.4,2628.3,0.0326909]
[1727274552830,13.60022388,2628.4,2628.3,0.0326909]
[1727274553630,9.83017056,2628.4,2628.3,0.0326909]
[1727274553972,4.84445631,2628.4,2628.3,0.0326909]
[1727274555268,7.84445631,2628.4,2628.3,0.0326909]
[1727274555473,3.80459,2628.4,2628.3,0.0326909]
[1727274556034,3.80459,2628.5,2628.3,0.0326909]
[1727274556334,3.80438,2628.6,2628.3,0.0326909]
[1727274557395,3.80446,2628.5,2628.3,0.0326909]
[1727274557874,3.80459,2628.4,2628.3,0.0326909]
[1727274558846,9.70269943,2628.4,2628.3,0.0326909]
[1727274559046,8.07209303,2628.4,2628.3,0.0326909]
[1727274559346,10.89410246,2628.4,2628.3,0.0326909]
[1727274559960,11.29127083,2628.4,2628.3,0.0326909]
[1727274560144,13.0761875,2628.4,2628.3,0.0326909]
[1727274560465,13.6261875,2628.4,2628.3,0.0326909]
[1727274560667,12.0376161,2628.4,2628.3,0.0326909]
[1727274560988,12.4347568,2628.4,2628.3,0.0326909]
[1727274561143,14.0229965,2628.4,2628.3,0.0326909]
[1727274561341,10.25373839,2628.4,2628.3,0.0326909]
[1727274561558,9.85659769,2628.4,2628.3,0.0326909]
[1727274561759,8.66560667,2628.4,2628.3,0.0326909]
[1727274561964,9.85659769,2628.4,2628.3,0.0326909]
[1727274562168,8.66560667,2628.4,2628.3,0.0326909]
[1727274562346,9.85659769,2628.4,2628.3,0.0326909]
[1727274562782,8.66560667,2628.4,2628.3,0.0326909]
[1727274562981,9.85656611,2628.4,2628.3,0.0326909]
[1727274563398,8.66560667,2628.4,2628.3,0.0326909]
[1727274563845,8.58950667,2628.4,2628.3,0.0326909]
[1727274564987,6.80459,2628.4,2628.3,0.0326909]
[1727274565701,3.0,2628.4,2628.3,0.0326909]
[1727274565872,7.60898,2628.5,2628.3,0.0326909]
[1727274566308,3.80459,2628.4,2628.3,0.0326909]
[1727274566797,4.565494,2628.4,2628.3,0.0326909]
[1727274567667,4.641594,2628.4,2628.3,0.0326909]
[1727274569111,8.83255344,2628.4,2628.3,0.0326909]
[1727274570196,7.641594,2628.4,2628.3,0.0326909]
[1727274571071,8.83255344,2628.4,2628.3,0.0326909]
[1727274571307,7.641594,2628.4,2628.3,0.0326909]
[1727274571615,12.05184313,2628.4,2628.3,0.0326909]
[1727274571772,10.46360343,2628.4,2628.3,0.0326909]
[1727274572177,12.44862688,2628.4,2628.3,0.0326909]
[1727274572502,12.99862688,2628.4,2628.3,0.0326909]
[1727274572704,11.41043272,2628.4,2628.3,0.0326909]
[1727274577681,8.03842329,2628.4,2628.3,0.0326909]
[1727274577879,12.84847966,2628.4,2628.3,0.0326909]
[1727274578085,10.86043272,2628.4,2628.3,0.0326909]
[1727274578296,12.848533,2628.4,2628.3,0.0326909]
[1727274578591,11.41043272,2628.4,2628.3,0.0326909]
[1727274578910,11.96408728,2628.4,2628.3,0.0326909]
[1727274579279,14.34909252,2628.4,2628.3,0.0326909]
[1727274579485,13.79543796,2628.4,2628.3,0.0326909]
[1727274579691,8.58842329,2628.4,2628.3,0.0326909]
[1727274579993,11.01360343,2628.4,2628.3,0.0326909]
[1727274580731,13.40053696,2628.4,2628.3,0.0326909]
[1727274580913,7.641594,2628.4,2628.3,0.0326909]
[1727274583423,10.02852753,2628.4,2628.3,0.0326909]
[1727274584637,10.46360343,2628.4,2628.3,0.0326909]
[1727274585440,13.25336377,2628.4,2628.3,0.0326909]
[1727274586236,14.20008639,2628.4,2628.3,0.0326909]
[1727274586436,11.41032605,2628.4,2628.3,0.0326909]
[1727274587139,11.96398061,2628.4,2628.3,0.0326909]
[1727274587325,15.10310149,2628.4,2628.3,0.0326909]
[1727274587721,11.80769708,2628.4,2628.3,0.0326909]
[1727274587925,3.80575,2627.6,2627.5,0.0378193]
[1727274588137,6.80575,2627.6,2627.5,0.0378193]
[1727274589035,10.14868388,2627.6,2627.5,0.0378193]
[1727274589206,7.35575,2627.6,2627.5,0.0378193]
[1727274589406,7.43185,2627.6,2627.5,0.0378193]
[1727274589724,12.66686741,2627.6,2627.5,0.0378193]
[1727274590503,9.36771426,2627.6,2627.5,0.0378193]
[1727274591041,12.16128352,2627.6,2627.5,0.0378193]
[1727274591208,9.36771426,2627.6,2627.5,0.0378193]
[1727274591605,8.81771426,2627.6,2627.5,0.0378193]
[1727274591959,8.74161426,2627.6,2627.5,0.0378193]
[1727274595148,11.13443883,2627.6,2627.5,0.0378193]
[1727274595351,8.74161426,2627.6,2627.5,0.0378193]
[1727274595552,9.29161426,2627.6,2627.5,0.0378193]
[1727274595754,8.74161426,2627.6,2627.5,0.0378193]
[1727274596811,5.74161426,2627.6,2627.5,0.0378193]
[1727274597157,7.73525529,2627.6,2627.5,0.8641193]
[1727274597522,5.79939103,2627.6,2627.5,0.8641193]
[1727274598055,8.79939103,2627.6,2627.5,0.8641193]
[1727274598552,8.79924801,2627.6,2627.5,0.8641193]
[1727274598858,8.79917801,2627.7,2627.5,0.8641193]
[1727274599055,5.00172614,2627.6,2627.5,0.8641193]
[1727274599717,3.80575,2627.6,2627.5,0.8641193]
[1727274599915,5.00176679,2627.6,2627.5,0.8641193]
[1727274600455,3.80575,2627.6,2627.5,0.8641193]
[1727274600621,6.52039624,2627.6,2627.5,0.8641193]
[1727274600817,6.52039624,2627.6,2627.0,0.8058]
[1727274600818,6.66345476,2627.6,2627.0,0.8058]
[1727274601155,3.80691,2626.8,2626.7,0.8436193]
[1727274601354,5.00322185,2626.8,2626.7,0.8436193]
[1727274601658,1.19608576,2626.8,2626.7,0.8436193]
[1727274602054,1.19608576,2627.0,2626.8,0.7727]
[1727274602254,8.80924576,2627.1,2626.8,0.7727]
[1727274602565,3.80676,2626.9,2626.8,0.7727]
[1727274603823,5.00284576,2626.9,2626.8,0.7727]
[1727274604567,6.04330958,2626.9,2626.8,0.7727]
[1727274604862,5.40179247,2627.0,2626.8,0.7727]
[1727274604863,1.19608576,2627.0,2626.8,0.7727]
[1727274605021,1.19608576,2627.2,2627.1,0.7724]
[1727274605222,5.00229576,2627.3,2627.1,0.7724]
[1727274605422,1.19608576,2627.4,2627.1,0.7724]
[1727274605677,1.19608576,2627.4,2627.1,1.230316]
[1727274605836,1.59508247,2627.5,2627.1,1.230316]
[1727274605837,5.00211576,2627.5,2627.1,0.7724]
[1727274606038,3.80633,2627.2,2627.1,0.7724]
[1727274606446,5.00241576,2627.2,2627.1,0.7724]
[1727274606762,1.19608576,2627.2,2627.1,0.7724]
[1727274607068,3.80633,2627.2,2627.1,0.7724]
[1727274607262,3.80662,2627.0,2626.8,0.8321]
[1727274607452,3.80662,2627.0,2626.7,0.0378193]
[1727274607453,3.80691,2626.8,2626.7,0.0378193]
[1727274608060,5.80038627,2626.8,2626.7,0.0378193]
[1727274608381,4.62038238,2626.8,2626.7,0.0378193]
[1727274608526,5.00282816,2626.8,2626.7,0.0378193]
[1727274608725,3.80691,2626.8,2626.7,0.0378193]
[1727274608926,5.00275816,2626.9,2626.7,0.0378193]
[1727274609359,8.80939816,2627.0,2626.8,0.8247]
[1727274609562,8.80939816,2627.0,2626.7,0.0378193]
[1727274609563,3.80676,2626.9,2626.7,0.0378193]
[1727274609787,5.00282816,2626.8,2626.7,0.0378193]
[1727274610089,9.027613,2626.8,2626.7,0.0378193]
[1727274610271,10.25501943,2626.8,2626.7,0.0378193]
[1727274610475,12.23479301,2626.8,2626.7,0.0378193]
[1727274611019,9.80952401,2626.8,2626.7,0.0378193]
[1727274611168,6.80691,2626.8,2626.7,0.0378193]
[1727274611345,7.35691,2626.8,2626.7,0.0378193]
[1727274611590,9.34948353,2626.8,2626.7,0.0378193]
[1727274611882,8.40074639,2626.8,2626.7,0.0378193]
[1727274612096,8.00215348,2626.8,2626.7,0.0378193]
[1727274612243,8.40074639,2626.8,2626.7,0.0378193]
[1727274612443,5.00236804,2626.8,2626.7,0.0378193]
[1727274612682,3.80691,2626.8,2626.7,0.0378193]
[1727274612981,5.00221804,2626.9,2626.7,0.0378193]
[1727274613188,1.59383639,2627.0,2626.8,0.7622]
[1727274613189,1.19545804,2627.0,2626.8,0.7622]
[1727274613347,5.00207804,2627.0,2626.8,0.7622]
[1727274613554,3.80676,2626.9,2626.8,0.7622]
[1727274613981,3.80691,2626.8,2626.7,0.0378193]
[1727274614182,5.00243772,2626.8,2626.7,0.0378193]
[1727274614348,8.00243772,2626.8,2626.7,0.0378193]
[1727274614548,6.80691,2626.8,2626.7,0.0378193]
[1727274614744,8.62075578,2626.8,2626.7,0.0378193]
[1727274614946,13.98533874,2626.8,2626.7,0.0378193]
[1727274615249,12.54641977,2626.8,2626.7,0.0378193]
[1727274615455,11.99276521,2626.8,2626.7,0.0378193]
[1727274615759,17.25626504,2626.8,2626.7,0.0378193]
[1727274615944,17.25626504,2626.8,2626.0,27.1266193]
[1727274615945,7.43402,2626.1,2626.0,27.1266193]
[1727274616152,10.25602943,2626.1,2626.0,27.1266193]
[1727274616390,9.42714104,2626.1,2626.0,27.1266193]
[1727274616760,7.43402,2626.1,2626.0,27.1266193]
[1727274617211,10.91796057,2626.1,2626.0,27.1266193]
[1727274617538,15.02115191,2626.1,2626.0,26.91469258]
[1727274617896,15.02115191,2626.1,2626.0,25.40449257]
[1727274618085,15.41973014,2626.1,2626.0,24.89811593]
[1727274618285,12.62968256,2626.1,2626.0,20.55719711]
[1727274618475,15.41504886,2626.1,2626.0,20.55719711]
[1727274618677,12.62968256,2626.1,2626.0,20.55719711]
[1727274619108,9.14574199,2626.1,2626.0,20.55719711]
[1727274619688,11.53285918,2626.1,2626.0,20.55719711]
[1727274619899,12.62968256,2626.1,2626.0,20.05833156]
[1727274620074,13.18333712,2626.1,2626.0,20.05833156]
[1727274620270,15.0156407,2626.1,2626.0,19.74492013]
[1727274620519,13.18333712,2626.1,2626.0,19.74492013]
[1727274620986,12.62968256,2626.1,2626.0,19.74492013]
[1727274621476,15.41163677,2626.1,2626.0,19.74492013]
[1727274621682,13.0270922,2626.1,2626.0,19.74492013]
[1727274621908,15.01300994,2626.1,2626.0,19.74492013]
[1727274622083,13.0270922,2626.1,2626.0,19.74492013]
[1727274622411,14.4629312,2626.1,2626.0,19.74492013]
[1727274622615,12.4770922,2626.1,2626.0,19.74492013]
[1727274622816,14.4629312,2626.1,2626.0,19.74492013]
[1727274623316,12.4770922,2626.1,2626.0,19.74492013]
[1727274623486,13.58074676,2626.1,2626.0,19.74492013]
[1727274623695,15.0129312,2626.1,2626.0,19.74492013]
[1727274623877,13.0270922,2626.1,2626.0,19.74492013]
[1727274624213,14.61469193,2626.1,2626.0,19.74492013]
[1727274624874,13.0270922,2626.1,2626.0,19.74492013]
[1727274625087,14.61469193,2626.1,2626.0,19.74492013]
[1727274625521,9.54315163,2626.1,2626.0,19.74492013]
[1727274625725,4.20532964,2626.1,2626.0,19.74492013]
[1727274625876,3.80792,2626.1,2626.0,19.74492013]
[1727274627081,6.80792,2626.1,2626.0,19.74492013]
[1727274627278,7.35792,2626.1,2626.0,19.74492013]
[1727274628467,7.35792,2626.1,2626.0,19.72492013]
[1727274629017,8.474491,2626.1,2626.0,19.72492013]
[1727274630119,10.94719763,2626.1,2626.0,19.72492013]
[1727274630414,12.13724364,2626.1,2626.0,19.72492013]
[1727274630615,10.94719763,2626.1,2626.0,19.72492013]
[1727274630801,12.13765918,2626.1,2626.0,19.72492013]
[1727274631316,16.01873793,2626.1,2626.0,19.72492013]
[1727274631715,14.4311382,2626.1,2626.0,19.72492013]
[1727274632023,8.94719763,2626.1,2626.0,19.72492013]
[1727274632240,10.13768965,2626.1,2626.0,19.72492013]
[1727274632585,8.94719763,2626.1,2626.0,19.72492013]
[1727274632791,10.13768965,2626.1,2626.0,19.72492013]
[1727274633084,8.94719763,2626.1,2626.0,19.72492013]
[1727274633285,10.94719763,2626.1,2626.0,19.72492013]
[1727274633492,12.53479736,2626.1,2626.0,19.72492013]
[1727274633693,12.93166029,2626.1,2626.0,19.72492013]
[1727274634192,10.94719763,2626.1,2626.0,19.72492013]
[1727274634434,12.93185619,2626.1,2626.0,19.72492013]
[1727274634992,12.53473723,2626.1,2626.0,19.72492013]
[1727274635496,12.1377258,2626.1,2626.0,19.72492013]
[1727274635804,12.13765799,2626.1,2626.0,19.72492013]
[1727274636045,10.13765799,2626.1,2626.0,19.72492013]
[1727274636219,10.06155799,2626.1,2626.0,19.72492013]
[1727274636420,8.87109763,2626.1,2626.0,19.72492013]
[1727274637064,10.06155799,2626.1,2626.0,19.72492013]
[1727274637361,12.06155799,2626.1,2626.0,19.72492013]
[1727274638447,15.28992543,2626.1,2626.0,19.72492013]
[1727274638664,15.36602543,2626.1,2626.0,19.72492013]
[1727274638839,13.77848583,2626.1,2626.0,19.72492013]
[1727274639039,15.7623879,2626.1,2626.0,19.72492013]
[1727274639239,15.36580995,2626.1,2626.0,19.72492013]
[1727274639654,13.77848583,2626.1,2626.0,19.72492013]
[1727274639829,14.9689201,2626.1,2626.0,19.72492013]
[1727274640029,14.96891636,2626.1,2626.0,19.72492013]
[1727274640269,12.8928694,2626.1,2626.0,19.72492013]
[1727274640567,10.58581483,2626.1,2626.0,19.72492013]
[1727274640946,4.75452663,2626.1,2626.0,19.72492013]
[1727274641253,3.80792,2626.1,2626.0,19.72492013]
[1727274641455,3.80778,2626.2,2626.0,19.72492013]
[1727274641674,3.80778,2626.2,2626.1,0.8163]
[1727274642026,3.80764,2626.3,2626.1,0.8163]
[1727274642277,3.80743,2626.5,2626.2,0.8032]
[1727274642470,3.8072,2626.6,2626.2,0.8032]
[1727274642632,3.80686,2626.9,2626.2,0.8032]
[1727274642838,3.80763,2626.3,2626.2,0.8032]
[1727274643608,4.35763,2626.3,2626.2,0.8032]
[1727274644914,6.80724,2626.6,2626.2,0.8032]
[1727274644915,3.0,2626.5,2626.3,0.7924]
[1727274645221,7.46,2627.1,2626.4,0.7935]
[1727274645222,3.8068,2626.9,2626.4,0.7935]
[1727274645469,3.8068,2626.9,2626.5,0.460102]
[1727274645706,3.80675,2627.0,2626.5,0.460102]
[1727274645707,3.80662,2627.0,2626.6,0.7935]
[1727274646095,1.19048357,2627.5,2626.7,0.8003]
[1727274646304,8.65048357,2627.7,2626.8,0.8003]
[1727274646471,3.80635,2627.2,2626.9,0.7723]
[1727274646676,7.61281,2627.2,2626.9,0.7723]
[1727274646884,3.806,2627.5,2626.9,0.7723]
[1727274647092,3.80614,2627.4,2627.0,0.7723]
[1727274647302,3.80623,2627.3,2627.0,0.7723]
[1727274648085,3.80647,2627.1,2627.0,0.7723]
[1727274648292,3.80633,2627.2,2627.0,0.7723]
[1727274650012,6.80627,2627.3,2627.0,0.7723]
[1727274650213,3.80607,2627.4,2627.0,0.7723]
[1727274650527,6.8059,2627.5,2627.1,0.7512]
[1727274651694,3.80606,2627.4,2627.1,0.7512]
[1727274652126,4.20292727,2627.8,2627.2,0.7617]
[1727274652298,4.20292727,2627.8,2627.3,0.7771]
[1727274652299,3.80576,2627.6,2627.3,0.7771]
[1727274652498,3.80576,2627.6,2627.1,3.80638]
[1727274652499,3.80525,2628.0,2627.2,0.7771]
[1727274652700,3.80525,2628.0,2627.5,0.7771]
[1727274652900,3.80525,2628.0,2627.1,0.4320862]
[1727274652901,3.80525,2628.0,2627.6,0.7771]
[1727274653134,3.80553,2627.8,2627.6,0.7771]
[1727274653641,3.8056,2627.7,2627.6,0.7771]
[1727274654224,3.80612,2627.4,2627.0,0.76]
[1727274654536,3.80596,2627.5,2627.1,0.76]
[1727274654947,3.80612,2627.4,2627.1,0.76]
[1727274655366,3.80619,2627.3,2627.1,0.76]
[1727274655576,7.61228,2627.4,2627.1,0.76]
[1727274655729,3.80619,2627.3,2627.1,0.76]
[1727274656084,3.80633,2627.2,2627.1,0.76]
[1727274658942,3.0761,2627.8,2627.1,0.76]
[1727274658943,3.80607,2627.4,2627.1,0.76]
[1727274659474,7.6122,2627.4,2627.1,0.76]
[1727274659616,3.80607,2627.4,2627.1,0.76]
[1727274660035,3.80555,2627.8,2627.2,4.57852]
[1727274660238,3.80575,2627.6,2627.3,0.7722]
[1727274660423,11.26542,2627.9,2627.3,0.7722]
[1727274660424,3.80547,2627.8,2627.3,0.7722]
[1727274660832,3.80547,2627.8,2627.4,0.7924]
[1727274661278,7.46,2627.9,2627.5,0.7924]
[1727274661557,3.80575,2627.6,2627.5,0.7924]
[1727274661893,3.80625,2627.3,2626.8,0.7924]
[1727274662018,3.80634,2627.2,2626.8,0.7924]
[1727274662377,3.8056,2627.7,2626.8,0.7924]
[1727274662378,3.80648,2627.1,2626.8,0.7924]
[1727274662562,3.80675,2627.0,2626.8,0.7924]
[1727274662925,3.80676,2626.9,2626.8,0.7924]
[1727274663365,7.61376,2626.9,2626.2,0.7671]
[1727274663703,3.80671,2627.0,2626.4,0.7856]
[1727274664261,3.80684,2626.9,2626.4,0.7856]
[1727274664272,3.80684,2626.9,2626.4,4.59302]
[1727274664283,3.80663,2627.0,2626.5,4.59171]
[1727274665027,3.80686,2626.9,2626.5,0.7844]
[1727274665031,3.80704,2626.8,2626.5,0.7844]
[1727274665036,3.80674,2627.0,2626.5,0.7844]
[1727274665319,3.80693,2626.8,2626.5,0.7844]
[1727274665417,3.0,2627.0,2626.6,3.80719]
[1727274665527,3.80669,2627.0,2626.5,0.7844]
[1727274665732,4.6300211,2627.0,2626.5,0.7844]
[1727274666081,3.807,2626.8,2626.5,0.7844]
[1727274666483,4.6300411,2627.0,2626.5,0.7844]
[1727274666484,3.80671,2627.0,2626.5,0.7844]
[1727274666791,3.80685,2626.9,2626.5,0.7844]
[1727274667290,3.80648,2627.1,2626.5,0.7844]
[1727274667603,3.80656,2627.1,2626.8,0.7573]
[1727274667926,11.26628,2627.3,2626.8,0.7573]
[1727274667927,7.61261,2627.3,2626.8,0.7573]
[1727274668079,3.80644,2627.2,2626.8,0.7573]
[1727274668396,3.80676,2626.9,2626.8,0.7573]
[1727274668658,3.80676,2626.9,2626.2,2.04920201]
[1727274668659,0.55,2627.1,2626.2,0.811]
[1727274668762,3.80728,2626.6,2626.2,0.811]
[1727274669372,3.80709,2626.7,2626.2,0.811]
[1727274669691,3.80717,2626.7,2626.3,0.811]
[1727274670197,3.8072,2626.6,2626.3,0.811]
[1727274670397,3.80729,2626.6,2626.3,0.811]
[1727274670580,3.80697,2626.8,2626.3,0.46189]
[1727274670897,3.80697,2626.8,2626.4,0.811]
[1727274671486,3.80671,2627.0,2626.5,0.8245]
[1727274671669,3.80671,2627.0,2626.5,4.63176]
[1727274672179,3.80652,2627.1,2626.6,0.8245]
[1727274672357,11.26609,2627.4,2626.9,3.80676]
[1727274672603,3.80589,2627.6,2627.0,4.58939]
[1727274672899,3.80577,2627.6,2627.2,0.7828]
[1727274673102,3.8056,2627.8,2627.2,3.80632]
[1727274673454,3.80576,2627.6,2627.3,0.7828]
[1727274673749,3.80553,2627.8,2627.3,0.7828]
[1727274674562,3.80553,2627.8,2627.3,4.58897]
[1727274674737,3.0,2627.9,2627.3,1.241701]
[1727274674968,11.26524,2628.0,2627.3,1.241701]
[1727274674969,3.80553,2627.8,2627.3,1.241701]
[1727274675247,6.80535,2627.9,2627.3,3.80609]
[1727274675609,3.80554,2627.8,2627.4,0.7642]
[1727274676098,3.80565,2627.7,2627.4,0.7642]
[1727274676306,3.80589,2627.5,2627.4,0.7642]
[1727274676503,3.80575,2627.6,2627.4,0.7642]
[1727274676711,3.0,2627.9,2627.4,0.7642]
[1727274677000,3.80565,2627.7,2627.4,0.7642]
[1727274677208,3.80575,2627.6,2627.4,0.7642]
[1727274678528,7.6111,2627.8,2627.4,0.7642]
[1727274678743,0.30761,2627.9,2627.4,0.7642]
[1727274678964,3.0,2627.9,2627.4,0.7642]
[1727274679298,3.80589,2627.5,2627.4,0.7642]
[1727274679639,3.8057,2627.7,2627.4,0.7642]
[1727274679928,3.80563,2627.7,2627.4,0.7642]
[1727274680621,3.80578,2627.6,2627.4,0.7642]
[1727274680940,3.80589,2627.5,2627.4,0.7642]
[1727274682705,7.61162,2627.6,2627.4,0.7642]
[1727274683157,3.8057,2627.7,2627.4,0.7642]
[1727274683311,3.80576,2627.6,2627.4,0.7642]
[1727274683514,3.80589,2627.5,2627.4,0.7642]
[1727274685442,3.80577,2627.6,2627.4,0.7642]
[1727274685443,3.80575,2627.6,2627.4,0.7642]
[1727274685665,3.80589,2627.5,2627.4,0.7642]
[1727274688554,7.61158,2627.6,2627.4,0.7642]
[1727274688756,3.80575,2627.6,2627.4,0.7642]
[1727274689439,3.80589,2627.5,2627.4,0.7642]
[1727274689789,3.80589,2627.5,2626.8,0.8329]
[1727274689790,3.80676,2626.9,2626.8,0.8329]
[1727274690524,5.00331741,2626.9,2626.8,0.8329]
[1727274690867,1.19655741,2626.9,2626.8,0.8329]
[1727274691066,5.00331741,2626.9,2626.8,0.8329]
[1727274691528,5.39408412,2626.9,2626.8,0.8329]
[1727274691734,5.00420304,2626.9,2626.8,0.8329]
[1727274691938,1.19746192,2626.9,2626.8,0.8329]
[1727274692140,1.19746192,2627.0,2626.8,6.63312811]
[1727274692341,1.19746192,2627.3,2627.0,0.8115]
[1727274692528,1.19746192,2627.3,2627.0,4.61803]
[1727274692735,1.19746192,2627.5,2627.0,0.7867]
[1727274692935,1.19746192,2627.5,2627.3,0.7867]
[1727274693847,1.19746192,2627.5,2627.4,3.80604]
[1727274694053,1.19746192,2627.8,2627.5,4.63579]
[1727274694534,1.19746192,2627.7,2627.5,4.63579]
[1727274694733,1.19746192,2627.7,2627.5,5.479987]
[1727274695254,1.19746192,2627.7,2627.5,1.674097]
[1727274695627,1.19746192,2627.7,2627.5,0.8299]
[1727274696373,1.19746192,2627.7,2627.6,7.28403631]
[1727274696694,1.19746192,2628.0,2627.8,0.7802]
[1727274696823,1.19746192,2628.1,2627.8,4.58565]
[1727274697172,1.19746192,2628.1,2627.8,3.80545]
[1727274697467,1.19746192,2628.3,2628.0,0.7802]
[1727274697659,1.19746192,2628.4,2628.0,4.58534]
[1727274697837,1.19746192,2628.4,2628.0,0.85629509]
[1727274698168,5.00206192,2628.4,2628.0,0.7802]
[1727274698332,1.19746192,2628.4,2628.0,0.7802]
[1727274699226,5.00192192,2628.5,2628.0,0.7802]
[1727274699421,5.00207192,2628.4,2628.0,0.7802]
[1727274699732,1.19746192,2628.3,2627.8,0.7781]
[1727274699952,3.80522,2628.0,2627.8,0.7781]
[1727274700743,3.80531,2627.9,2627.8,0.7781]
[1727274700946,1.19746192,2628.0,2627.5,0.7781]
[1727274701247,3.80563,2627.7,2627.5,0.7781]
[1727274701666,3.80575,2627.6,2627.2,0.763]
[1727274703263,5.00302192,2627.8,2627.2,4.56933]
[1727274703700,3.80556,2627.8,2627.3,3.80616]
[1727274704232,5.00302192,2627.8,2627.3,3.80616]
[1727274704240,5.00302192,2627.8,2627.2,5.026183]
[1727274704575,5.00302192,2627.8,2627.2,8.832433]
[1727274704578,3.80568,2627.7,2627.2,5.026183]
[1727274704821,3.80584,2627.6,2627.2,0.763]
[1727274704971,3.80556,2627.8,2627.2,0.763]
[1727274705172,3.80576,2627.6,2627.2,0.763]
[1727274706670,3.80604,2627.4,2627.2,0.763]
[1727274707383,3.80604,2627.4,2626.9,3.80666]
[1727274707384,3.80604,2627.4,2626.9,4.63715]
[1727274707595,3.80624,2627.3,2626.9,0.8304]
[1727274707816,3.80604,2627.4,2626.9,0.8304]
[1727274707984,1.19746192,2627.5,2626.9,0.8304]
[1727274707985,1.19746192,2627.5,2626.9,4.63716]
[1727274708193,5.00336192,2627.5,2627.0,3.80658]
[1727274708678,1.19746192,2627.5,2627.1,3.80647]
[1727274709612,1.19746192,2627.5,2627.1,3.8064]
[1727274710118,7.61163,2627.6,2627.1,3.8064]
[1727274710119,1.19746192,2627.6,2627.2,4.62983]
[1727274710268,5.00310192,2627.7,2627.2,4.62983]
[1727274710474,4.19746192,2627.7,2627.3,3.80609]
[1727274710674,5.00287192,2627.9,2627.4,3.806]
[1727274710885,1.19746192,2627.8,2627.4,3.806]
[1727274711699,5.00294192,2627.8,2627.3,4.34981676]
[1727274711918,1.19746192,2627.8,2627.4,3.80603]
[1727274712412,1.19746192,2627.8,2627.6,0.7542]
[1727274712624,5.00287192,2627.9,2627.6,0.7542]
[1727274713808,1.19746192,2627.8,2627.6,0.7542]
[1727274714175,5.00287192,2627.9,2627.6,0.7542]
[1727274714613,1.19746192,2627.8,2627.6,0.7542]
[1727274716290,1.19746192,2627.7,2627.6,0.7542]
[1727274716617,1.19746192,2627.8,2627.6,4.55995]
[1727274716800,1.19746192,2627.8,2627.6,1.590776]
[1727274717116,1.19746192,2627.8,2627.6,0.7542]
[1727274717288,5.39264412,2627.9,2627.6,0.7542]